{"text_format":"1","workbook":"xlsx","n_sheets":2,"sheets":["MVP","Hoja1"],"not_rendered":{"charts":0,"images":5,"macros":0,"external_links":0,"defined_names":0,"comments":0,"pivot_tables":0},"unopened":[],"bounds":{"document_bytes":16777216,"sheet_cells":100000,"rows_first":2000,"rows_last":500,"rows_between":2000,"halvings":0,"cell_chars":16384,"cell_head_chars":4096},"cells_cut":0,"cells_raw":0,"read":"whole","date_system":"1900"}

{"sheet":"MVP","index":0,"n_rows":120,"n_cols":20,"rows_kept":120,"cut":false,"hidden":false,"merged":[]}
[]
[null,"#","Player","Club","Played","Matches Played","Runs","50's","100's","Not Outs","Wickets","3 wicket hauls","5 wicket hauls","Catches","Run outs (direct hits & assists)","Stumpings","TOTAL"]
[null,1,"Lautaro Musiani","Lomas",5,5,255,1,1,null,6,null,null,2,null,1,{"$f":"(E3*5+G3+H3*5+I3*10+J3*5+K3*10+L3*5+M3*10+N3*5+O3*5+P3*5)","v":370}]
[null,2,"Matias Paterlini","San Albano",5,5,248,1,null,2,5,null,null,3,null,null,353]
[null,3,"Esteban MacDermott","Lomas",5,5,101,1,null,null,13,1,1,2,1,null,291]
[null,4,"Poli Ferguson","Belgrano",4,4,167,2,null,1,5,1,null,3,null,null,272]
[null,5,"Ambarish","Indian XI",4,4,173,3,null,null,3,null,null,4,null,null,258,null,5,"3 wickets hauls"]
[null,6,"Abhiram Hr","Hurlingham",5,5,114,null,null,null,8,1,null,4,null,1,249,null,10,"5 wickets hauls"]
[null,7,"Gary Savage","Hurlingham",5,5,158,null,null,null,5,null,null,1,null,null,238,null,5,"Catch"]
[null,8,"Lucas Paterlini","San Albano",3,3,127,null,1,1,7,1,null,null,null,null,232,null,5,"Involved in Run Out"]
[null,9,"John CJ Hurley","Belgrano",5,5,38,null,null,2,13,2,null,3,null,null,228,null,5,"Stumping"]
[null,10,"William Slemmings","San Jorge",5,5,71,null,null,null,10,2,null,3,1,null,226]
[null,11,"Chandra Mohan","Indian XI",5,5,81,null,null,null,8,2,null,2,2,null,216]
[null,12,"Nico Schulte","Hurlingham",5,5,144,1,null,null,1,null,null,2,null,null,{"$f":"(E14*5+G14+H14*5+I14*10+J14*5+K14*10+L14*5+M14*10+N14*5+O14*5+P14*5)","v":194}]
[null,13,"Steve Nino","Belgrano",5,5,116,1,null,null,2,null,null,3,2,null,191]
[null,14,"Ramiro Escobar","San Albano",4,4,91,null,null,null,6,1,null,1,null,null,181]
[null,15,"Martin Siri","Lomas",3,3,141,1,null,null,null,null,null,3,1,null,181]
[null,16,"Hernan Williams","San Albano",5,5,114,1,null,1,null,null,null,5,null,1,179]
[null,17,"Hernan Fennell","Belgrano",4,4,80,1,null,null,6,1,null,null,null,null,170]
[null,18,"Nithin ","Indian XI",4,4,39,null,null,2,8,2,null,1,null,null,164]
[null,19,"Daniel Sutton","San Jorge",5,5,49,null,null,null,8,null,null,2,null,null,164]
[null,20,"Pedro Bruno","San Albano",5,5,109,null,null,null,1,null,null,2,2,null,164]
[null,21,"Nick Friend","San Jorge",5,5,78,null,null,null,5,1,null,1,null,null,163]
[null,22,"Navin Yadav","Indian XI",5,5,98,null,null,1,null,null,null,4,1,null,153]
[null,23,"Agustin Casime","San Albano",4,4,12,null,null,null,10,1,1,1,null,null,152]
[null,24,"Pedro Arrighi","Belgrano",5,5,22,null,null,null,6,1,null,6,1,null,147]
[null,25,"Charles Gibson","Lomas",4,4,101,null,null,null,null,null,null,3,null,1,141]
[null,26,"Derek Culley","Hurlingham",2,2,2,null,null,1,9,1,1,1,1,1,137]
[null,27,"Liam Hughes","San Jorge",2,2,79,1,null,null,3,1,null,1,null,null,134]
[null,28,"Ruan van der Merwe","San Jorge",5,5,74,null,null,null,2,null,null,1,1,null,129]
[null,29,"Sam Hatt","Hurlingham",3,3,83,null,null,1,1,null,null,3,null,null,128]
[null,30,"Prajyoth","Indian XI",5,5,91,null,null,null,null,null,null,2,null,null,126]
[null,31,"Bruno Angeletti","San Jorge",5,5,88,null,null,null,null,null,null,2,null,null,123]
[null,32,"Ale Ferguson","Belgrano",3,3,60,1,null,null,1,null,null,3,1,2,120,null,5,"Playing"]
[null,33,"Andrew Elliott","Hurlingham",5,5,7,null,null,1,6,null,1,null,null,null,{"$f":"(E35*5+G35+H35*5+I35*10+J35*5+K35*10+L35*5+M35*10+N35*5+O35*5+P35*5)","v":107}]
[null,34,"Boopathi","Indian XI",5,5,2,null,null,2,6,null,null,null,1,null,102]
[null,35,"Jambie Marlor","Hurlingham",4,4,46,null,null,null,3,null,null,null,null,null,96]
[null,36,"Diego Lord","Lomas",4,4,11,null,null,null,5,1,null,1,1,null,96,null,5,"3 wickets hauls"]
[null,37,"Kumaresan Kumar","Indian XI",3,3,24,null,null,null,5,1,null,null,null,null,94]
[null,38,"Rodrigo Scioscia","San Albano",4,4,2,null,null,1,6,1,null,null,null,null,92,null,10,"100 scored"]
[null,39,"Mike Rowe","San Albano",5,5,4,null,null,null,5,1,null,null,null,null,84,null,5,"Not Out"]
[null,40,"Nico Vazquez","San Jorge",3,3,32,null,null,1,3,null,null,null,null,null,82]
[null,41,"Bernardo Irigoyen","Lomas",3,3,60,null,null,null,null,null,null,null,1,null,80]
[null,42,"Martin Taddei","Lomas",3,3,10,null,null,null,4,1,null,2,null,null,80]
[null,43,"Andres Stocks","Belgrano",4,4,9,null,null,1,3,null,null,3,null,null,79]
[null,44,"Pablo Siracusa","San Albano",3,3,19,null,null,1,3,1,null,null,null,null,74]
[null,45,"Juan Tissera","Belgrano",4,4,36,null,null,null,1,null,null,1,null,null,71]
[null,46,"Sathya","Indian XI",2,2,31,null,null,2,1,null,null,null,1,null,66]
[null,47,"Manoj","Indian XI",4,4,26,null,null,1,1,null,null,null,null,null,61]
[null,48,"Sridhar","Indian XI",4,4,34,null,null,null,null,null,null,1,null,null,59]
[null,49,"Inaki Jimenez","Lomas",3,3,8,null,null,1,3,null,null,null,null,null,58]
[null,50,"Jonathan Martinez","San Albano",2,2,40,null,null,null,null,null,null,1,null,null,55]
[null,51,"Manish","Indian XI",1,1,14,null,null,1,3,null,null,null,null,null,54]
[null,52,"Francisco Herran","San Jorge",4,4,2,null,null,null,2,null,null,1,null,1,52]
[null,53,"Agustin Husain","Hurlingham",2,2,2,null,null,null,3,null,null,2,null,null,52]
[null,54,"Daniel Suarez","Lomas",1,1,21,null,null,null,2,null,null,1,null,null,51]
[null,55,"Matteo Arrighi","Belgrano",3,3,31,null,null,1,null,null,null,null,null,null,51]
[null,56,"Marc Rodgers","Belgrano",2,2,40,null,null,null,null,null,null,null,null,null,50]
[null,57,"Martin Peralta","Lomas",3,3,29,null,null,1,null,null,null,null,null,null,49]
[null,58,"Nico Serrano","San Albano",5,5,19,null,null,1,null,null,null,null,null,null,49]
[null,59,"Felipe Jimenez","Lomas",5,5,4,null,null,2,1,null,null,null,null,null,49]
[null,60,"Martin Whitelegg","San Jorge",3,3,32,null,null,null,null,null,null,null,null,null,47]
[null,61,"Andres Madariya","Hurlingham",1,1,36,null,null,null,null,null,null,1,null,null,46]
[null,62,"Axel Horwitz","Belgrano",2,2,null,null,null,1,3,null,null,null,null,null,45]
[null,63,"Gaston Arizaga","Belgrano",2,2,8,null,null,null,2,null,null,1,null,null,43]
[null,64,"Will Beckingsale","Hurlingham",3,3,17,null,null,null,null,null,null,2,null,null,42]
[null,65,"Matt Sarre","San Jorge",2,2,11,null,null,null,2,null,null,null,null,null,{"$f":"(E67*5+G67+H67*5+I67*10+J67*5+K67*10+L67*5+M67*10+N67*5+O67*5+P67*5)","v":41}]
[null,66,"Nigel Worsnop","Hurlingham",4,4,21,null,null,null,null,null,null,null,null,null,41]
[null,67,"Pedro Baron","Belgrano",1,1,34,null,null,null,null,null,null,null,null,null,39]
[null,68,"Nick King","Lomas",3,3,11,null,null,null,null,null,null,1,1,null,36]
[null,69,"Maggu","Indian XI",2,2,21,null,null,null,null,null,null,1,null,null,36]
[null,70,"Augusto Mustafa","Belgrano",4,4,15,null,null,null,null,null,null,null,null,null,35]
[null,71,"Andres Madariya","Hurlingham",1,1,24,null,null,null,null,null,null,1,null,null,34]
[null,72,"Mungito Haldane","San Jorge",2,2,2,null,null,null,null,null,null,4,null,null,32]
[null,73,"Carlos Pelandini","San Albano",3,3,7,null,null,null,null,null,null,2,null,null,32]
[null,74,"Ed Woodhouse-Darry","Hurlingham",1,1,21,null,null,1,null,null,null,null,null,null,31]
[null,75,"Juan Benitez","San Albano",2,2,16,null,null,null,null,null,null,1,null,null,31]
[null,76,"Declan Morrison","San Jorge",1,1,23,null,null,null,null,null,null,null,null,null,28]
[null,77,"Andrew Sweerts de Landas Wyborgh","San Jorge",1,1,3,null,null,null,2,null,null,null,null,null,28]
[null,78,"Martin Cortabarria","Belgrano",1,1,23,null,null,null,null,null,null,null,null,null,28]
[null,79,"Enrique Roulet","Belgrano",3,3,5,null,null,null,null,null,null,1,null,null,25]
[null,80,"Nikolas Opfermann","San Jorge",2,2,4,null,null,null,null,null,null,2,null,null,24]
[null,81,"Horacio Esperon","Hurlingham",2,2,3,null,null,null,null,null,null,2,null,null,23]
[null,82,"Tomas Birnie","San Albano",3,3,2,null,null,null,null,null,null,null,1,null,22]
[null,83,"Tomas Francis","San Albano",1,1,11,null,null,null,null,null,null,1,null,null,21]
[null,84,"Magesh S","Indian XI",2,2,6,null,null,null,null,null,null,null,1,null,21]
[null,85,"John Cavernelis","Hurlingham",1,1,9,null,null,null,null,null,null,1,null,null,19]
[null,86,"Mark Robson","Hurlingham",2,2,9,null,null,null,null,null,null,null,null,null,19]
[null,87,"Will Mattsmate","San Jorge",1,1,7,null,null,1,null,null,null,null,null,null,17]
[null,88,"Marcos Morales","Lomas",2,2,1,null,null,null,null,null,null,1,null,null,16]
[null,89,"Alex Cherry","Hurlingham",1,1,1,null,null,null,1,null,null,null,null,null,16]
[null,90,"Manu Esperon","Lomas",2,2,0,null,null,null,null,null,null,1,null,null,15]
[null,91,"Varun","Indian XI",2,2,5,null,null,null,null,null,null,null,null,null,15]
[null,92,"Chris Gregory","Hurlingham",2,2,0,null,null,null,null,null,null,1,null,null,15]
[null,93,"Matias Gibson","Lomas",1,1,10,null,null,null,null,null,null,null,null,null,15]
[null,94,"Sunny Singh","Indian XI",1,1,9,null,null,null,null,null,null,null,null,null,14]
[null,95,"Martin Rost","Lomas",2,2,3,null,null,null,null,null,null,null,null,null,13]
[null,96,"Manu Costa","San Jorge",1,1,7,null,null,null,null,null,null,null,null,null,12]
[null,97,"Gonzalo Husain","Hurlingham",1,1,7,null,null,null,null,null,null,null,null,null,{"$f":"(E99*5+G99+H99*5+I99*10+J99*5+K99*10+L99*5+M99*10+N99*5+O99*5+P99*5)","v":12}]
[null,98,"Martin Hemmingsen","Hurlingham",1,1,1,null,null,null,null,null,null,1,null,null,11]
[null,99,"Diego Fuller","Hurlingham",1,1,6,null,null,null,null,null,null,null,null,null,11]
[null,100,"Nacho Fermani","Hurlingham",2,2,1,null,null,null,null,null,null,null,null,null,11]
[null,101,"Sofi Retamales","San Jorge",1,1,0,null,null,1,null,null,null,null,null,null,10]
[null,102,"Archie Burgess","San Jorge",1,1,0,null,null,1,null,null,null,null,null,null,10]
[null,103,"Denver Gregory","Hurlingham",1,1,0,null,null,1,null,null,null,null,null,null,10]
[null,104,"James Dougall","Hurlingham",1,1,0,null,null,1,null,null,null,null,null,null,10]
[null,105,"Rodrigo Ventura","Lomas",1,1,1,null,null,null,null,null,null,null,null,null,10]
[null,106,"Mani Balaji","Indian XI",1,1,null,null,null,null,null,null,null,null,null,null,10]
[null,107,"Hassan","Lomas",1,1,null,null,null,1,null,null,null,null,null,null,{"$f":"(E109*5+G109+H109*5+I109*10+J109*5+K109*10+L109*5+M109*10+N109*5+O109*5+P109*5)","v":10}]
[null,108,"Pablo Roca","Lomas",1,1,3,null,null,null,null,null,null,null,null,null,8]
[null,109,"Alex Lambert","San Jorge",1,1,2,null,null,null,null,null,null,null,null,null,7]
[null,110,"Alex Kiely","San Jorge",1,1,1,null,null,null,null,null,null,null,null,null,6]
[null,111,"Roland Huxley","San Jorge",1,1,1,null,null,null,null,null,null,null,null,null,6]
[null,112,"Alan Kirschbaum","Belgrano",1,1,null,null,null,null,null,null,null,null,null,null,5]
[null,113,"Anish","Lomas",1,1,0,null,null,null,null,null,null,null,null,null,5]
[null,114,"Guillerma Mustafa","San Jorge",1,1,null,null,null,null,null,null,null,null,null,null,5]
[null,115,"Francisco Alvarez","Belgrano",1,1,0,null,null,null,null,null,null,null,null,null,5]
[null,116,"Santi Duggan","San Jorge",1,1,0,null,null,null,null,null,null,null,null,null,5]
[null,117,"Praveen","Indian XI",1,1,null,null,null,null,null,null,null,null,null,null,5]
[null,118,"Sebastian Menis","Lomas",1,1,0,null,null,null,null,null,null,null,null,null,5]

{"sheet":"Hoja1","index":1,"n_rows":0,"n_cols":0,"rows_kept":0,"cut":false,"hidden":false,"merged":[]}